fUST/lending_fUST_20250203
["ID","MTS","AMOUNT","RATE_DAILY","PERIOD"]
[351389683,1738551037423,-403.18643544,0.00016438,2]
[351389684,1738551037432,-500.0,0.00016438,2]
[351389685,1738551037443,-500.0,0.00016438,2]
[351389686,1738551037453,-1895.95,0.00016438,2]
[351389687,1738551037464,-500.0,0.00016438,2]
[351389688,1738551037481,-880.8,0.00016438,2]
[351389689,1738551037491,-781.22,0.00016438,2]
[351389690,1738551037502,-500.0,0.00016438,2]
[351389691,1738551037512,-500.0,0.00016438,2]
[351389692,1738551037522,-502.68308185,0.00016438,2]
[351389693,1738551037532,-1669.22,0.00016438,2]
[351389694,1738551037542,-522.47761148,0.00016438,2]
[351389695,1738551037552,-500.0,0.00016438,2]
[351389697,1738551037564,-500.0,0.00016438,2]
[351389699,1738551037667,-500.0,0.00016438,2]
[351389700,1738551037677,-502.87170622,0.00016438,2]
[351389701,1738551037687,-500.0,0.00016438,2]
[351389702,1738551037698,-500.0,0.00016438,2]
[351389703,1738551037709,-500.0,0.00016438,2]
[351389704,1738551037725,-500.0,0.00016438,2]
[351389705,1738551037734,-500.0,0.00016438,2]
[351389707,1738551037745,-500.0,0.00016438,2]
[351389708,1738551037755,-500.0,0.00016438,2]
[351389709,1738551037764,-500.0,0.00016438,2]
[351389711,1738551037774,-500.0,0.00016438,2]
[351389712,1738551037784,-500.0,0.00016438,2]
[351389713,1738551037793,-501.75945103,0.00016438,2]
[351389714,1738551037803,-500.0,0.00016438,2]
[351389716,1738551037812,-500.0,0.00016438,2]
[351389718,1738551037822,-500.0,0.00016438,2]
[351389720,1738551037831,-500.0,0.00016438,2]
[351389721,1738551037840,-515.82718567,0.00016438,2]
[351389722,1738551037850,-500.0,0.00016438,2]
[351389723,1738551037859,-500.0,0.00016438,2]
[351389724,1738551037869,-500.0,0.00016438,2]
[351389725,1738551037880,-500.0,0.00016438,2]
[351389726,1738551037890,-1114.96,0.00016438,2]
[351389727,1738551037900,-500.0,0.00016438,2]
[351389728,1738551037910,-500.0,0.00016438,2]
[351389729,1738551037920,-500.0,0.00016438,2]
[351389730,1738551037929,-680.11,0.00016438,2]
[351389731,1738551037939,-500.0,0.00016438,2]
[351389732,1738551037949,-539.45,0.00016438,2]
[351389733,1738551037959,-500.0,0.00016438,2]
[351389734,1738551037972,-502.06719922,0.00016438,2]
[351389735,1738551037983,-500.0,0.00016438,2]
[351389736,1738551037993,-500.0,0.00016438,2]
[351389737,1738551038003,-500.0,0.00016473,2]
[351389739,1738551038012,-4511.1606909,0.00016475,2]
[351389741,1738551038022,-875.5527606,0.00016509,2]
[351389743,1738551038032,-500.0,0.00016573,2]
[351389745,1738551038041,-500.0,0.00016574,2]
[351389746,1738551038051,-500.0,0.00016574,2]
[351389747,1738551038061,-500.0,0.00016574,2]
[351389749,1738551038071,-500.0,0.00016574,2]
[351389750,1738551038081,-500.0,0.00016574,2]
[351389751,1738551038091,-537.13,0.00016574,2]
[351389752,1738551038100,-537.13,0.00016574,2]
[351389753,1738551038109,-537.13,0.00016574,2]
[351389754,1738551038119,-537.13,0.00016574,2]
[351389756,1738551038129,-1115.48,0.00016575,2]
[351389758,1738551038139,-500.0,0.00016575,2]
[351389759,1738551038148,-500.0,0.00016575,2]
[351389760,1738551038159,-500.0,0.00016575,2]
[351389761,1738551038168,-447.36667524,0.00016575,2]
[351389762,1738551038178,-500.0,0.00016575,2]
[351389764,1738551038187,-500.0,0.00016575,2]
[351389765,1738551038197,-165.28752267,0.00016575,2]
[351389766,1738551038207,-500.0,0.00016575,2]
[351389767,1738551038216,-500.0,0.00016575,2]
[351389768,1738551038229,-500.0,0.00016575,2]
[351389769,1738551038239,-500.0,0.00016575,2]
[351389770,1738551038249,-500.0,0.00016575,2]
[351389771,1738551038259,-500.0,0.00016575,2]
[351389772,1738551038269,-500.0,0.00016575,2]
[351389773,1738551038279,-500.0,0.00016575,2]
[351389774,1738551038289,-313.48,0.00016575,2]
[351389775,1738551038299,-500.0,0.00016575,2]
[351389777,1738551038309,-500.0,0.00016575,2]
[351389779,1738551038319,-500.0,0.00016575,2]
[351389780,1738551038330,-500.0,0.00016575,2]
[351389781,1738551038340,-500.0,0.00016575,2]
[351389783,1738551038350,-500.0,0.00016575,2]
[351389785,1738551038361,-546.84561717,0.00016575,2]
[351389786,1738551038371,-500.0,0.00016575,2]
[351389787,1738551038381,-500.0,0.00016575,2]
[351389789,1738551038391,-500.0,0.00016575,2]
[351389790,1738551038402,-500.0,0.00016575,2]
[351389791,1738551038412,-519.88467087,0.00016575,2]
[351389793,1738551038425,-500.0,0.00016575,2]
[351389794,1738551038435,-600.9630685,0.00016575,2]
[351389795,1738551038446,-500.0,0.00016575,2]
[351389796,1738551038457,-500.0,0.00016575,2]
[351389797,1738551038468,-500.0,0.00016575,2]
[351389798,1738551038483,-500.0,0.00016575,2]
[351389799,1738551038494,-1000.0,0.00016575,2]
[351389800,1738551038505,-500.0,0.00016575,2]
[351389801,1738551038516,-169.43,0.00016575,2]
[351389802,1738551038526,-500.0,0.00016575,2]
[351389803,1738551038536,-222.68100981,0.00016575,2]
[351389804,1738551038546,-500.0,0.00016575,2]
[351389805,1738551038556,-500.0,0.00016575,2]
[351389806,1738551038566,-500.0,0.00016575,2]
[351389807,1738551038578,-500.0,0.00016575,2]
[351389808,1738551038589,-500.0,0.00016575,2]
[351389809,1738551038600,-500.0,0.00016575,2]
[351389810,1738551038610,-500.0,0.00016575,2]
[351389811,1738551038620,-597.73,0.00016575,2]
[351389812,1738551038630,-500.0,0.00016575,2]
[351389813,1738551038641,-500.0,0.00016575,2]
[351389814,1738551038651,-514.1012664,0.00016575,2]
[351389815,1738551038662,-500.0,0.00016575,2]
[351389816,1738551038672,-500.0,0.00016575,2]
[351389817,1738551038682,-514.6326471,0.00016575,2]
[351389818,1738551038692,-500.0,0.00016575,2]
[351389819,1738551038702,-500.0,0.00016575,2]
[351389820,1738551038712,-500.0,0.00016575,2]
[351389821,1738551038726,-500.0,0.00016575,2]
[351389822,1738551038737,-601.4,0.00016575,2]
[351389823,1738551038747,-280.16751958,0.00016575,2]
[351389824,1738551038757,-500.0,0.00016575,2]
[351389825,1738551038767,-500.0,0.00016575,2]
[351389826,1738551038777,-500.0,0.00016575,2]
[351389827,1738551038787,-500.0,0.00016575,2]
[351389828,1738551038796,-500.0,0.00016575,2]
[351389829,1738551038807,-515.19476654,0.00016575,2]
[351389830,1738551038816,-500.0,0.00016575,2]
[351389831,1738551038826,-271.82447508,0.00016575,2]
[351389832,1738551038836,-500.0,0.00016575,2]
[351389833,1738551038846,-500.0,0.00016575,2]
[351389834,1738551038856,-500.0,0.00016575,2]
[351389835,1738551038865,-500.0,0.00016575,2]
[351389836,1738551038875,-500.0,0.00016575,2]
[351389837,1738551038885,-500.0,0.00016575,2]
[351389838,1738551038895,-295.16056026,0.00016575,2]
[351389839,1738551038905,-500.0,0.00016575,2]
[351389840,1738551038915,-500.0,0.00016575,2]
[351389841,1738551038926,-500.0,0.00016575,2]
[351389842,1738551038936,-1454.7,0.00016575,2]
[351389843,1738551038946,-500.0,0.00016575,2]
[351389844,1738551038957,-586.82,0.00016575,2]
[351389845,1738551038967,-500.0,0.00016575,2]
[351389846,1738551038980,-3898.11,0.00016575,2]
[351389847,1738551038990,-500.0,0.00016575,2]
[351389848,1738551038999,-595.04,0.00016575,2]
[351389849,1738551039009,-518.48643392,0.00016575,2]
[351389850,1738551039019,-622.85405026,0.00016575,2]
[351389852,1738551039029,-940.7,0.00016575,2]
[351389853,1738551039038,-500.0,0.00016575,2]
[351389854,1738551039048,-500.0,0.00016575,2]
[351389855,1738551039058,-500.0,0.00016575,2]
[351389856,1738551039067,-500.0,0.00016575,2]
[351389857,1738551039076,-500.0,0.00016575,2]
[351389858,1738551039085,-7975.66,0.00016575,2]
[351389859,1738551039095,-856.29,0.00016575,2]
[351389860,1738551039105,-500.0,0.00016575,2]
[351389861,1738551039114,-500.0,0.00016575,2]
[351389862,1738551039124,-500.0,0.00016575,2]
[351389863,1738551039133,-531.57,0.00016575,2]
[351389864,1738551039143,-1817.94,0.00016575,2]
[351389865,1738551039153,-584.28263761,0.00016575,2]
[351389866,1738551039162,-1084.51,0.00016575,2]
[351389867,1738551039173,-15182.26,0.00016575,2]
[351389868,1738551039183,-500.0,0.00016575,2]
[351389869,1738551039193,-500.0,0.00016575,2]
[351389870,1738551039203,-503.30582109,0.00016575,2]
[351389871,1738551039213,-934.51,0.00016575,2]
[351389872,1738551039226,-500.0,0.00016575,2]
[351389873,1738551039236,-500.0,0.00016575,2]
[351389874,1738551039246,-500.0,0.00016575,2]
[351389875,1738551039255,-900.41,0.00016575,2]
[351389876,1738551039269,-500.0,0.00016575,2]
[351389877,1738551039282,-500.0,0.00016575,2]
[351389878,1738551039293,-1067.15,0.00016575,2]
[351389879,1738551039303,-500.0,0.00016575,2]
[351389880,1738551039313,-500.0,0.00016575,2]
[351389881,1738551039324,-386.46625524,0.00016575,2]
[351389882,1738551039334,-500.0,0.00016575,2]
[351389883,1738551039346,-600.67,0.00016575,2]
[351389884,1738551039356,-500.0,0.00016575,2]
[351389885,1738551039366,-500.0,0.00016575,2]
[351389886,1738551039376,-2404.05,0.00016575,2]
[351389887,1738551039385,-500.0,0.00016575,2]
[351389888,1738551039399,-623.6,0.00016575,2]
[351389889,1738551039409,-500.0,0.00016575,2]
[351389890,1738551039419,-500.0,0.00016575,2]
[351389891,1738551039429,-466.65300637,0.00016575,2]
[351389892,1738551039440,-500.0,0.00016575,2]
[351389893,1738551039449,-541.98,0.00016575,2]
[351389894,1738551039459,-505.69410846,0.00016575,2]
[351389895,1738551039473,-500.0,0.00016575,2]
[351389896,1738551039483,-500.0,0.00016575,2]
[351389897,1738551039493,-500.0,0.00016575,2]
[351389898,1738551039502,-500.0,0.00016575,2]
[351389899,1738551039512,-557.12378526,0.00016575,2]
[351389900,1738551039521,-500.0,0.00016575,2]
[351389901,1738551039531,-500.0,0.00016575,2]
[351389902,1738551039542,-2264.19,0.00016575,2]
[351389903,1738551039552,-335.02158631,0.00016575,2]
[351389904,1738551039561,-500.0,0.00016575,2]
[351389905,1738551039570,-500.0,0.00016575,2]
[351389906,1738551039580,-839.22,0.00016575,2]
[351389907,1738551039589,-500.0,0.00016575,2]
[351389908,1738551039599,-500.0,0.00016575,2]
[351389909,1738551039609,-500.0,0.00016575,2]
[351389910,1738551039619,-500.0,0.00016575,2]
[351389911,1738551039628,-500.0,0.00016575,2]
[351389912,1738551039638,-200.29236393,0.00016575,2]
[351389913,1738551039648,-337.21553648,0.00016575,2]
[351389914,1738551039728,-500.0,0.00016575,2]
[351389915,1738551039751,-500.0,0.00016575,2]
[351389916,1738551039761,-500.0,0.00016575,2]
[351389917,1738551039772,-500.0,0.00016575,2]
[351389918,1738551039782,-500.0,0.00016575,2]
[351389919,1738551039793,-500.0,0.00016575,2]
[351389920,1738551039804,-4385.24,0.00016575,2]
[351389921,1738551039815,-500.0,0.00016575,2]
[351389922,1738551039825,-1887.07,0.00016575,2]
[351389923,1738551039835,-7526.91,0.00016575,2]
[351389924,1738551039846,-1517.87,0.00016575,2]
[351389925,1738551039856,-1000.0,0.00016575,7]
[351389926,1738551039866,-553.64212849,0.00016575,2]
[351389927,1738551039875,-500.0,0.00016575,2]
[351389928,1738551039884,-500.0,0.00016575,2]
[351389929,1738551039894,-505.00237791,0.00016575,2]
[351389930,1738551039904,-1895.95,0.00016575,2]
[351389931,1738551039914,-880.8,0.00016575,2]
[351389932,1738551039924,-781.22,0.00016575,2]
[351389933,1738551039934,-500.0,0.00016575,2]
[351389934,1738551039944,-500.0,0.00016575,2]
[351389935,1738551039954,-1669.22,0.00016575,2]
[351389936,1738551039963,-500.0,0.00016575,2]
[351389937,1738551039979,-500.0,0.00016575,2]
[351389938,1738551039989,-500.0,0.00016575,2]
[351389939,1738551039999,-500.0,0.00016575,2]
[351389940,1738551040011,-500.0,0.00016575,2]
[351389943,1738551040021,-500.0,0.00016575,2]
[351389944,1738551040031,-500.0,0.00016575,2]
[351389946,1738551040041,-500.0,0.00016575,2]
[351389947,1738551040051,-500.0,0.00016575,2]
[351389948,1738551040062,-505.34826254,0.00016575,2]
[351389949,1738551040072,-1114.96,0.00016575,2]
[351389950,1738551040082,-500.0,0.00016575,2]
[351389951,1738551040092,-501.94366641,0.00016575,2]
[351389953,1738551040102,-500.0,0.00016575,2]
[351389954,1738551040111,-680.11,0.00016575,2]
[351389955,1738551040121,-500.0,0.00016575,2]
[351389956,1738551040131,-539.45,0.00016575,2]
[351389957,1738551040141,-394.34008367,0.00016575,2]
[351389958,1738551040151,-151.11971487,0.00016593,2]
[351389959,1738551040161,-158.3526973,0.000166,2]
[351389960,1738551040170,-875.5527606,0.00016681,2]
[351389961,1738551040180,-500.0,0.00016711,2]
[351389962,1738551040190,-500.0,0.00016711,2]
[351389963,1738551040200,-500.0,0.00016711,2]
[351389964,1738551040211,-500.0,0.00016711,2]
[351389965,1738551040222,-169.85,0.00016711,2]
[351389966,1738551040232,-537.13,0.00016711,2]
[351389967,1738551040241,-537.13,0.00016711,2]
[351389968,1738551040251,-537.13,0.00016711,2]
[351389969,1738551040261,-537.13,0.00016711,2]
[351389970,1738551040271,-1115.48,0.00016712,2]
[351389971,1738551040281,-500.0,0.00016712,2]
[351389972,1738551040291,-500.0,0.00016712,2]
[351389973,1738551040301,-189.23044102,0.00016712,2]
[351389974,1738551040311,-500.0,0.00016712,2]
[351389975,1738551040321,-500.0,0.00016712,2]
[351389976,1738551040331,-468.57933467,0.00016712,2]
[351389977,1738551040341,-500.0,0.00016712,2]
[351389978,1738551040350,-500.0,0.00016712,2]
[351389979,1738551040359,-500.0,0.00016712,2]
[351389980,1738551040368,-500.0,0.00016712,2]
[351389981,1738551040378,-500.0,0.00016712,2]
[351389982,1738551040388,-500.0,0.00016712,2]
[351389983,1738551040399,-500.0,0.00016712,2]
[351389985,1738551040410,-506.67360251,0.00016712,2]
[351389986,1738551040420,-500.0,0.00016712,2]
[351389987,1738551040432,-500.0,0.00016712,2]
[351389988,1738551040442,-500.0,0.00016712,2]
[351389989,1738551040452,-500.0,0.00016712,2]
[351389990,1738551040463,-500.0,0.00016712,2]
[351389992,1738551040475,-500.0,0.00016712,2]
[351389993,1738551040485,-500.0,0.00016712,2]
[351389994,1738551040495,-1000.0,0.00016712,2]
[351389995,1738551040506,-500.0,0.00016712,2]
[351389996,1738551040516,-500.0,0.00016712,2]
[351389997,1738551040526,-500.0,0.00016712,2]
[351389998,1738551040536,-500.0,0.00016712,2]
[351389999,1738551040546,-500.0,0.00016712,2]
[351390000,1738551040556,-500.0,0.00016712,2]
[351390001,1738551040566,-500.0,0.00016712,2]
[351390003,1738551040575,-597.73,0.00016712,2]
[351390004,1738551040585,-500.0,0.00016712,2]
[351390005,1738551040595,-500.0,0.00016712,2]
[351390007,1738551040604,-500.0,0.00016712,2]
[351390009,1738551040614,-500.0,0.00016712,2]
[351390010,1738551040623,-505.62695822,0.00016712,2]
[351390011,1738551040633,-601.4,0.00016712,2]
[351390012,1738551040645,-500.0,0.00016712,2]
[351390013,1738551040655,-500.0,0.00016712,2]
[351390014,1738551040666,-500.0,0.00016712,2]
[351390015,1738551040678,-500.0,0.00016712,2]
[351390016,1738551040687,-500.0,0.00016712,2]
[351390017,1738551040698,-500.0,0.00016712,2]
[351390018,1738551040708,-500.0,0.00016712,2]
[351390019,1738551040718,-500.0,0.00016712,2]
[351390020,1738551040732,-500.0,0.00016712,2]
[351390021,1738551040741,-500.0,0.00016712,2]
[351390022,1738551040751,-500.0,0.00016712,2]
[351390023,1738551040762,-512.22405165,0.00016712,2]
[351390024,1738551040772,-500.0,0.00016712,2]
[351390025,1738551040782,-1454.7,0.00016712,2]
[351390026,1738551040792,-500.0,0.00016712,2]
[351390027,1738551040803,-586.82,0.00016712,2]
[351390028,1738551040813,-527.39148343,0.00016712,2]
[351390029,1738551040823,-3898.11,0.00016712,2]
[351390030,1738551040833,-500.0,0.00016712,2]
[351390031,1738551040843,-595.04,0.00016712,2]
[351390032,1738551040853,-940.7,0.00016712,2]
[351390033,1738551040862,-251.2066516,0.00016712,2]
[351390034,1738551040871,-500.0,0.00016712,2]
[351390035,1738551040880,-500.0,0.00016712,2]
[351390036,1738551040890,-500.0,0.00016712,2]
[351390037,1738551040899,-500.0,0.00016712,2]
[351390038,1738551040909,-7975.66,0.00016712,2]
[351390039,1738551040918,-856.29,0.00016712,2]
[351390040,1738551040928,-500.0,0.00016712,2]
[351390041,1738551040938,-500.0,0.00016712,2]
[351390042,1738551040947,-531.57,0.00016712,2]
[351390043,1738551040957,-1817.94,0.00016712,2]
[351390044,1738551040967,-1084.51,0.00016712,2]
[351390045,1738551040983,-15182.26,0.00016712,2]
[351390046,1738551040993,-500.0,0.00016712,2]
[351390047,1738551041005,-934.51,0.00016712,2]
[351390048,1738551041015,-500.0,0.00016712,2]
[351390049,1738551041024,-500.0,0.00016712,2]
[351390050,1738551041034,-500.0,0.00016712,2]
[351390051,1738551041044,-900.41,0.00016712,2]
[351390052,1738551041054,-648.86506846,0.00016712,2]
[351390053,1738551041064,-500.0,0.00016712,2]
[351390054,1738551041074,-1067.15,0.00016712,2]
[351390055,1738551041084,-500.0,0.00016712,2]
[351390056,1738551041093,-600.67,0.00016712,2]
[351390057,1738551041103,-2404.05,0.00016712,2]
[351390058,1738551041112,-623.6,0.00016712,2]
[351390059,1738551041122,-338.97694341,0.00016712,2]
[351390060,1738551041131,-500.0,0.00016712,2]
[351390061,1738551041142,-541.98,0.00016712,2]
[351390062,1738551041151,-500.0,0.00016712,2]
[351390063,1738551041161,-500.0,0.00016712,2]
[351390064,1738551041171,-500.0,0.00016712,2]
[351390065,1738551041181,-500.0,0.00016712,2]
[351390066,1738551041191,-2264.19,0.00016712,2]
[351390067,1738551041200,-500.0,0.00016712,2]
[351390068,1738551041211,-500.0,0.00016712,2]
[351390069,1738551041224,-839.22,0.00016712,2]
[351390070,1738551041235,-500.0,0.00016712,2]
[351390072,1738551041245,-500.0,0.00016712,2]
[351390073,1738551041254,-500.0,0.00016712,2]
[351390074,1738551041264,-500.0,0.00016712,2]
[351390075,1738551041273,-500.0,0.00016712,2]
[351390076,1738551041282,-500.0,0.00016712,2]
[351390077,1738551041292,-506.66499295,0.00016712,2]
[351390078,1738551041301,-500.0,0.00016712,2]
[351390079,1738551041311,-500.0,0.00016712,2]
[351390080,1738551041321,-4385.24,0.00016712,2]
[351390081,1738551041331,-500.0,0.00016712,2]
[351390082,1738551041341,-1887.07,0.00016712,2]
[351390083,1738551041351,-7526.91,0.00016712,2]
[351390084,1738551041360,-1517.87,0.00016712,2]
[351390085,1738551041369,-1000.0,0.00016712,7]
[351390086,1738551041379,-500.0,0.00016712,2]
[351390087,1738551041388,-500.0,0.00016712,2]
[351390089,1738551041399,-1895.95,0.00016712,2]
[351390090,1738551041408,-880.8,0.00016712,2]
[351390091,1738551041417,-781.22,0.00016712,2]
[351390092,1738551041428,-500.0,0.00016712,2]
[351390093,1738551041439,-500.0,0.00016712,2]
[351390094,1738551041448,-1669.22,0.00016712,2]
[351390095,1738551041458,-500.0,0.00016712,2]
[351390096,1738551041467,-500.0,0.00016712,2]
[351390097,1738551041482,-500.0,0.00016712,2]
[351390098,1738551041492,-500.0,0.00016712,2]
[351390099,1738551041503,-500.0,0.00016712,2]
[351390100,1738551041514,-500.0,0.00016712,2]
[351390101,1738551041524,-500.0,0.00016712,2]
[351390102,1738551041535,-1114.96,0.00016712,2]
[351390103,1738551041547,-500.0,0.00016712,2]
[351390104,1738551041559,-500.0,0.00016712,2]
[351390106,1738551041651,-680.11,0.00016712,2]
[351390107,1738551041665,-606.03779245,0.00016712,2]
[351390108,1738551041676,-539.45,0.00016712,2]
[351390109,1738551041687,-537.13,0.00016848,2]
[351390110,1738551041697,-537.13,0.00016848,2]
[351390111,1738551041708,-537.13,0.00016848,2]
[351390112,1738551041717,-537.13,0.00016848,2]
[351390113,1738551041735,-537.13,0.00016848,2]
[351390114,1738551041745,-537.35279773,0.00016848,2]
[351390115,1738551041754,-1115.48,0.00016849,2]
[351390116,1738551041764,-500.0,0.00016849,2]
[351390117,1738551041773,-500.0,0.00016849,2]
[351390118,1738551041782,-500.0,0.00016849,2]
[351390119,1738551041792,-500.0,0.00016849,2]
[351390120,1738551041802,-548.77500287,0.00016849,2]
[351390121,1738551041812,-500.0,0.00016849,2]
[351390122,1738551041823,-207.97916798,0.00016849,2]
[351390123,1738551041832,-502.71633971,0.00016849,2]
[351390124,1738551041842,-500.0,0.00016849,2]
[351390125,1738551041853,-500.0,0.00016849,2]
[351390126,1738551041862,-500.0,0.00016849,2]
[351390127,1738551041873,-500.0,0.00016849,2]
[351390128,1738551041883,-500.0,0.00016849,2]
[351390129,1738551041893,-1000.0,0.00016849,2]
[351390130,1738551041902,-620.196214,0.00016849,2]
[351390131,1738551041912,-500.0,0.00016849,2]
[351390132,1738551041922,-500.0,0.00016849,2]
[351390133,1738551041931,-500.0,0.00016849,2]
[351390134,1738551041941,-500.0,0.00016849,2]
[351390135,1738551041950,-500.0,0.00016849,2]
[351390136,1738551041960,-500.0,0.00016849,2]
[351390137,1738551041969,-597.73,0.00016849,2]
[351390138,1738551041985,-500.0,0.00016849,2]
[351390139,1738551041996,-500.0,0.00016849,2]
[351390140,1738551042006,-500.0,0.00016849,2]
[351390141,1738551042017,-500.0,0.00016849,2]
[351390142,1738551042027,-601.4,0.00016849,2]
[351390143,1738551042036,-500.0,0.00016849,2]
[351390144,1738551042046,-500.0,0.00016849,2]
[351390145,1738551042055,-500.0,0.00016849,2]
[351390146,1738551042065,-500.0,0.00016849,2]
[351390147,1738551042075,-631.47,0.00016849,2]
[351390148,1738551042085,-361.12435438,0.00016849,2]
[351390149,1738551042095,-274.20254529,0.00016849,2]
[351390150,1738551042104,-500.0,0.00016849,2]
[351390151,1738551042114,-500.0,0.00016849,2]
[351390152,1738551042123,-500.0,0.00016849,2]
[351390153,1738551042134,-544.68887381,0.00016849,2]
[351390154,1738551042144,-1454.7,0.00016849,2]
[351390155,1738551042155,-500.0,0.00016849,2]
[351390156,1738551042165,-586.82,0.00016849,2]
[351390157,1738551042175,-3898.11,0.00016849,2]
[351390158,1738551042185,-595.04,0.00016849,2]
[351390159,1738551042195,-940.7,0.00016849,2]
[351390160,1738551042205,-500.0,0.00016849,2]
[351390161,1738551042215,-500.0,0.00016849,2]
[351390162,1738551042228,-500.0,0.00016849,2]
[351390163,1738551042237,-7975.66,0.00016849,2]
[351390164,1738551042247,-856.29,0.00016849,2]
[351390165,1738551042256,-500.0,0.00016849,2]
[351390166,1738551042266,-500.0,0.00016849,2]
[351390167,1738551042275,-531.57,0.00016849,2]
[351390168,1738551042285,-1817.94,0.00016849,2]
[351390169,1738551042295,-1084.51,0.00016849,2]
[351390170,1738551042304,-15182.26,0.00016849,2]
[351390171,1738551042314,-511.33402051,0.00016849,2]
[351390172,1738551042324,-934.51,0.00016849,2]
[351390173,1738551042333,-500.0,0.00016849,2]
[351390174,1738551042343,-500.0,0.00016849,2]
[351390175,1738551042352,-900.41,0.00016849,2]
[351390176,1738551042362,-505.74492828,0.00016849,2]
[351390177,1738551042372,-1067.15,0.00016849,2]
[351390178,1738551042382,-600.67,0.00016849,2]
[351390179,1738551042393,-2404.05,0.00016849,2]
[351390180,1738551042404,-623.6,0.00016849,2]
[351390181,1738551042415,-500.0,0.00016849,2]
[351390182,1738551042425,-541.98,0.00016849,2]
[351390183,1738551042437,-500.0,0.00016849,2]
[351390184,1738551042448,-2264.19,0.00016849,2]
[351390185,1738551042458,-500.0,0.00016849,2]
[351390186,1738551042468,-500.0,0.00016849,2]
[351390187,1738551042482,-839.22,0.00016849,2]
[351390188,1738551042492,-504.14579301,0.00016849,2]
[351390189,1738551042502,-500.0,0.00016849,2]
[351390190,1738551042513,-500.0,0.00016849,2]
[351390191,1738551042523,-500.0,0.00016849,2]
[351390193,1738551042533,-500.0,0.00016849,2]
[351390194,1738551042543,-500.0,0.00016849,2]
[351390195,1738551042552,-500.0,0.00016849,2]
[351390196,1738551042562,-4385.24,0.00016849,2]
[351390197,1738551042572,-500.0,0.00016849,2]
[351390198,1738551042582,-1887.07,0.00016849,2]
[351390199,1738551042593,-7526.91,0.00016849,2]
[351390200,1738551042603,-1517.87,0.00016849,2]
[351390201,1738551042613,-1000.0,0.00016849,7]
[351390202,1738551042624,-500.0,0.00016849,2]
[351390203,1738551042634,-500.0,0.00016849,2]
[351390204,1738551042643,-1895.95,0.00016849,2]
[351390205,1738551042652,-880.8,0.00016849,2]
[351390206,1738551042662,-781.22,0.00016849,2]
[351390207,1738551042672,-500.0,0.00016849,2]
[351390208,1738551042682,-500.0,0.00016849,2]
[351390209,1738551042692,-1669.22,0.00016849,2]
[351390210,1738551042702,-500.0,0.00016849,2]
[351390211,1738551042713,-500.0,0.00016849,2]
[351390212,1738551042725,-500.0,0.00016849,2]
[351390213,1738551042734,-500.0,0.00016849,2]
[351390214,1738551042744,-500.0,0.00016849,2]
[351390215,1738551042754,-1114.96,0.00016849,2]
[351390216,1738551042763,-500.0,0.00016849,2]
[351390217,1738551042773,-547.62420298,0.00016849,2]